Cogmind - Beta 15 @@@ ROGUE MODE // 2025.08.24 @ 00:04:50 Player: WitherScout Result: Destroyed by S-27 Virus with Autogun Performance ------------- Evolutions (3) 1500 Regions Visited (9) 1800 Robots Destroyed (23) 115 Value Destroyed (359) 359 Prototype IDs (11) 220 Alien Tech Used (0) 0 Bonus (320) 320 TOTAL SCORE: 4314 Bonus ------- Follower Combat Kills 20 Met Data Miner 300 Cogmind --------- Core Integrity 0/700 Matter 158/300 Energy 98/100 System Corruption 7% Temperature Cool (0) Movement Core (50) Location -6/Proximity Caves Parts ------- > --- POWER (2) -------- (None) > --- PROPULSION (6) --- (None) > --- UTILITY (3) ------ (None) > --- WEAPON (2) ------- (None) > --- INVENTORY (5) ---- Light Ion Engine Nuclear Core VTOL Module Peak State ------------ > --- POWER ------------ Light Ion Engine Cooled Ion Engine > --- PROPULSION ------- VTOL Module VTOL Module VTOL Module VTOL Module Xenon Bombardment Thruster Xenon Bombardment Thruster > --- UTILITY ---------- Small Storage Unit Armor Integrity Analyzer ECM Suite > --- WEAPON ----------- Light Assault Rifle Light Assault Rifle > --- INVENTORY -------- Nuclear Core Flight Unit VTOL Module VTOL Module Light Assault Rifle Light Assault Rifle Light Assault Rifle [Rating: 29] Favorites ----------- Power Cooled Ion Engine Engine Cooled Ion Engine Power Core Nuclear Core Propulsion Flight Unit Leg Aluminum Leg Flight Unit Flight Unit Utility Small Storage Unit Device ECM Suite Storage Small Storage Unit Processor Armor Integrity Analyzer Protection Light Armor Plating Weapon Light Assault Rifle Ballistic Gun Light Assault Rifle Build | -11 -10 -9 -8 -7 -7 -7 -7 -7 -6 ------- Run | Yrd Mat Mat Mat Fac Was Fac Low Dat Pro Slots Evolved 6 | . . 2 2 2 . . . . . Power 1 | . . . . 1 . . . . . Propulsion 4 | . . 2 2 . . . . . . Utility 1 | . . . . 1 . . . . . Weapon . | . . . . . . . . . . Parts Attached 41 | 7 7 13 1 9 . 3 1 . . Power 7 | 2 1 2 1 1 . . . . . Engine 6 | 2 1 2 . 1 . . . . . Core 1 | . . . 1 . . . . . . Reactor . | . . . . . . . . . . Propulsion 21 | 2 2 8 . 8 . . 1 . . Treads . | . . . . . . . . . . Leg 5 | 2 2 1 . . . . . . . Wheel . | . . . . . . . . . . Hover . | . . . . . . . . . . Flight 16 | . . 7 . 8 . . 1 . . Utility 6 | 1 2 . . . . 3 . . . Device 3 | . 1 . . . . 2 . . . Storage 1 | 1 . . . . . . . . . Processor 1 | . . . . . . 1 . . . Hackware . | . . . . . . . . . . Protection 1 | . 1 . . . . . . . . Artifact . | . . . . . . . . . . Weapon 7 | 2 2 3 . . . . . . . Energy Gun . | . . . . . . . . . . Energy Cannon . | . . . . . . . . . . Ballistic Gun 7 | 2 2 3 . . . . . . . Ballistic Cannon . | . . . . . . . . . . Launcher . | . . . . . . . . . . Special Weapon . | . . . . . . . . . . Impact Weapon . | . . . . . . . . . . Slashing Weapon . | . . . . . . . . . . Piercing Weapon . | . . . . . . . . . . Special Melee Weapon . | . . . . . . . . . . Unidentified Prototypes 1 | . . 1 . . . . . . . Parts Lost 26 | . 4 2 . 2 . . 12 . 6 Power 3 | . 1 . . 1 . . . . 1 Propulsion 11 | . . 2 . 1 . . 6 . 2 Utility 5 | . 1 . . . . . 2 . 2 Weapon 7 | . 2 . . . . . 4 . 1 Highest Loss Streak 12 | . 4 1 . 2 . . 12 . 5 To Critical Strikes 1 | . 1 . . . . . . . . Average Backups 6 | 1 5 6 6 6 7 7 6 2 2 Power 1 | . 1 2 2 1 1 1 1 1 1 Propulsion 1 | . 2 2 . 1 3 3 2 1 1 Utility . | . . . . . . . . . . Weapon 2 | . . 1 3 3 3 3 1 . . Tool/Special . | . . . . . . . . . . Unused Backups 2 | . 1 . . . . . . . 1 Power 1 | . 1 . . . . . . . . Propulsion 1 | . . . . . . . . . 1 Utility . | . . . . . . . . . . Weapon . | . . . . . . . . . . Tool/Special . | . . . . . . . . . . Average Slot Usage (%) 85 | . 89 96 90 91 92 99 66 53 33 Engine 12 | . 11 11 9 15 15 15 15 15 7 Leg 6 | . 26 18 . . . . . . . Flight 33 | . . 24 53 46 46 46 22 15 7 Device 8 | . 4 11 9 7 7 7 12 15 11 Storage 8 | . 14 11 9 7 7 7 3 . . Ballistic Gun 14 | . 25 20 9 14 15 15 11 7 5 Peak Build Rating 29 | 6 7 11 13 25 25 29 28 12 12 Average Rating 14 | 4 6 9 12 19 25 28 16 12 7 On Entrance 13 | . 6 7 10 12 25 25 28 12 12 Naked Turns 67 | . . . . . . . . . 67 Heaviest Build 20 | 14 17 16 17 20 20 20 20 14 14 Greatest Support 40 | 20 20 40 24 28 28 37 37 17 17 Greatest Overweight (x) 4 | 4 3 2 . . . . . . . Average Overweight (x) . | 1 . . . . . . . . . Largest Inventory Capacity 8 | 8 8 8 8 8 8 8 8 5 5 Average Capacity 7 | 7 8 8 8 8 8 8 6 5 5 Most Carried 8 | 2 8 8 7 8 7 8 8 2 3 Average Carried 6 | 1 5 6 6 6 7 7 5 2 2 Final Capacity 8 | 8 8 8 8 8 8 8 5 5 5 Final Carried 8 | 2 7 8 7 7 7 8 2 2 3 Class Distribution -------------------- 48% | Scavenger-Sprinter 22% | Mutant 17% | Scavenger-Mutant 12% | Sprinter Dominant Class ---------------- Mutant | -10/Materials Scavenger-Mutant | -9/Materials Scavenger-Sprinter | -8/Materials Scavenger-Sprinter | -7/Factory Sprinter | -7/Waste Sprinter | -7/Factory Sprinter | -7/Lower Caves Mutant | -7/Data Miner Mutant | -6/Proximity Caves Resources | -11 -10 -9 -8 -7 -7 -7 -7 -7 -6 ----------- Run | Yrd Mat Mat Mat Fac Was Fac Low Dat Pro Matter Collected 860 | 267 292 160 . . . . 141 . . Remotely . | . . . . . . . . . . Salvage Created 578 | . 386 92 . . . . 100 . . Parts 38 | . 27 9 . . . . 2 . . Haulers Intercepted . | . . . . . . . . . . Recyclers Shooed . | . . . . . . . . . . Parts Field Recycled . | . . . . . . . . . . Retrieved Matter . | . . . . . . . . . . Parts Self-Destructed 1 | . . . . . . . 1 . . Prevented . | . . . . . . . . . . Kills | -11 -10 -9 -8 -7 -7 -7 -7 -7 -6 ------- Run | Yrd Mat Mat Mat Fac Was Fac Low Dat Pro Combat Hostiles Destroyed 19 | . 10 6 . . . . 3 . . Guns 19 | . 10 6 . . . . 3 . . Classes Destroyed 5 | . 4 . . . . . 1 . . Worker 3 | . 3 . . . . . . . . Recycler 1 | . 1 . . . . . . . . Swarmer 15 | . 6 6 . . . . 3 . . Grunt 4 | . 4 . . . . . . . . Samaritan 1 | . . . . . . . 1 . . Best Kill Streak 9 | . 9 4 . . . . 2 . . Combat Bots Only 6 | . 6 4 . . . . 2 . . Max Kills in Single Turn 1 | . 1 1 . . . . 1 . . Gunslinging . | . . . . . . . . . . Exploded . | . . . . . . . . . . Melee . | . . . . . . . . . . Uniques/NPCs Destroyed . | . . . . . . . . . . Combat | -11 -10 -9 -8 -7 -7 -7 -7 -7 -6 -------- Run | Yrd Mat Mat Mat Fac Was Fac Low Dat Pro Hostile Shots Fired 370 | . 106 37 5 55 . 13 57 . 97 Missed 133 | . 24 8 2 28 . 10 18 . 43 Hits 237 | . 82 29 3 27 . 3 39 . 54 Projectile 237 | . 82 29 3 27 . 3 39 . 54 AOE 1 | . . . 1 . . . . . . Critical Strikes 6 | . 2 1 . 1 . . 1 . 1 Part Disruptions 1 | . . . . . . 1 . . . Damage Taken 2620 | . 700 225 81 259 . 35 595 . 725 Core 861 | . 109 32 18 28 . . 65 . 609 Absorbed by Shields . | . . . . . . . . . . Core Remaining (%) 86 | 100 56 92 96 . . . . . . Volleys Fired 86 | . 33 15 . . . . 34 . 4 Largest 2 | . 2 2 . . . . 2 . 1 Hottest 40 | . 40 40 . . . . 40 . 20 Shots Fired 142 | . 64 30 . . . 1 43 . 4 Gun 142 | . 64 30 . . . 1 43 . 4 Cannon . | . . . . . . . . . . Launcher . | . . . . . . . . . . Special . | . . . . . . . . . . Kinetic 142 | . 64 30 . . . 1 43 . 4 Thermal . | . . . . . . . . . . Explosive . | . . . . . . . . . . Electromagnetic . | . . . . . . . . . . Robot Hit Streak 7 | . 7 4 . . . . 6 . . Robot Miss Streak 7 | . 7 3 . . . . 7 . 4 Penetration Max . | . . . . . . . . . . Secondary Targets 3 | . 1 1 . . . . 1 . . Max Gunslinging Chain 1 | . 1 1 . . . . 1 . . Shots Hit Robots 76 | . 34 19 . . . . 23 . . Core Hits 44 | . 23 10 . . . . 11 . . Critical Kills . | . . . . . . . . . . Critical Parts Destroyed . | . . . . . . . . . . Critical Strikes . | . . . . . . . . . . Melee Attacks . | . . . . . . . . . . Impact . | . . . . . . . . . . Slashing . | . . . . . . . . . . Piercing . | . . . . . . . . . . Sneak Attacks . | . . . . . . . . . . Combat Hostiles . | . . . . . . . . . . Follow-up Attacks . | . . . . . . . . . . Damage Inflicted 775 | . 398 161 . . . . 200 . 16 Guns 774 | . 397 161 . . . . 200 . 16 Cannons . | . . . . . . . . . . Explosions . | . . . . . . . . . . Melee . | . . . . . . . . . . Ramming 1 | . 1 . . . . . . . . Kinetic 774 | . 397 161 . . . . 200 . 16 Thermal . | . . . . . . . . . . Explosive . | . . . . . . . . . . Electromagnetic . | . . . . . . . . . . Impact . | . . . . . . . . . . Slashing . | . . . . . . . . . . Piercing . | . . . . . . . . . . Highest Corruption 7 | . . . . 1 6 7 7 7 7 Average Corruption 6 | . . . . 1 3 6 7 7 7 Corruption Purged . | . . . . . . . . . . Corruption Blocked . | . . . . . . . . . . Effects 18 | . . . . . 1 6 3 . 8 Message Errors 6 | . . . . . . 2 . . 4 Matter Fused 5 | . . . . . . 1 2 . 2 Heat Flow Errors 3 | . . . . . . 1 . . 2 Energy Discharges 1 | . . . . . . . 1 . . Data Loss (minor) 1 | . . . . . . 1 . . . Misfires 1 | . . . . . . 1 . . . Alerts 1 | . . . . . 1 . . . . Overload Shots . | . . . . . . . . . . Overflow Damage . | . . . . . . . . . . Projectiles . | . . . . . . . . . . Explosions . | . . . . . . . . . . Melee . | . . . . . . . . . . Knockbacks . | . . . . . . . . . . Impact . | . . . . . . . . . . Kinetic . | . . . . . . . . . . Secondary . | . . . . . . . . . . Self-Inflicted Damage . | . . . . . . . . . . Shots . | . . . . . . . . . . Rammed . | . . . . . . . . . . Targets Rammed 1 | . 1 . . . . . . . . Kicked 1 | . 1 . . . . . . . . Crushed . | . . . . . . . . . . Highest Temperature 372 | . 6 4 21 196 156 372 198 . 203 Average Temperature 113 | . 2 1 8 86 63 161 113 . 92 Received Heat Transfer 180 | . 66 . 9 54 . 12 . . 39 Effects 1 | . . . . . . 1 . . . Damage (minor) 1 | . . . . . . 1 . . . Siege Activations . | . . . . . . . . . . Martial Activations . | . . . . . . . . . . Shielding Activations . | . . . . . . . . . . Robots Disrupted . | . . . . . . . . . . Combat Hostiles . | . . . . . . . . . . Robots Corrupted . | . . . . . . . . . . Combat Hostiles . | . . . . . . . . . . Parts Fried . | . . . . . . . . . . Impact Corruptions . | . . . . . . . . . . Robots Melted . | . . . . . . . . . . Combat Hostiles . | . . . . . . . . . . Parts Melted . | . . . . . . . . . . Heat Transferred . | . . . . . . . . . . Parts Sabotaged . | . . . . . . . . . . Parts Stolen . | . . . . . . . . . . Parts Stripped . | . . . . . . . . . . Power Chain Reactions . | . . . . . . . . . . Alert | -11 -10 -9 -8 -7 -7 -7 -7 -7 -6 ------- Run | Yrd Mat Mat Mat Fac Was Fac Low Dat Pro Maximum Alert Level . | . . . . . . . . . . Low Security (%) 100 | 100 100 100 100 100 100 100 . . . Level 1 . | . . . . . . . . . . Level 2 . | . . . . . . . . . . Level 3 . | . . . . . . . . . . Level 4 . | . . . . . . . . . . Level 5 . | . . . . . . . . . . High Security . | . . . . . . . . . . Max Security . | . . . . . . . . . . Peak Influence 190 | . 190 100 15 15 15 15 . . . Initial 50 | . . 50 14 6 . 10 . . . Average 23 | . 98 44 . . 2 2 . . . Influence Increases 782 | . 310 180 20 45 15 27 70 . 115 Destroy 0b10 Robot/C 400 | . 200 120 . . . . 60 . 20 Destroy 0b10 Robot/NC 20 | . 20 . . . . . . . . Destroy Leader 60 | . 30 20 . . . . 10 . . Allied During Kill 5 | . . . . . . . . . 5 Successful Hack 27 | . . 10 5 . . 12 . . . Partial Spotted 120 | . . 30 15 45 15 15 . . . Lose Combat Pursuer 150 | . 60 . . . . . . . 90 Influence Decreases 717 | . 190 266 39 60 . 40 52 20 50 Entered New Map 126 | . . 70 20 9 . 5 2 20 . Time Decay 475 | . 150 186 . 44 . 35 30 . 30 Lost Part 77 | . 40 10 . 7 . . 20 . . Lost Ally 20 | . . . . . . . . . 20 Purge Threat 19 | . . . 19 . . . . . . Squads Dispatched 8 | . 1 1 2 3 . 1 . . . Investigation . | . . . . . . . . . . Extermination 2 | . . . . 2 . . . . . Reinforcement 6 | . 1 1 2 1 . 1 . . . Assault . | . . . . . . . . . . Garrison . | . . . . . . . . . . Intercept . | . . . . . . . . . . Searches Triggered . | . . . . . . . . . . Construction Impeded . | . . . . . . . . . . Haulers Reinforced . | . . . . . . . . . . Active Scanning Responses . | . . . . . . . . . . Cargo Convoy Interrupts . | . . . . . . . . . . Stealth | -11 -10 -9 -8 -7 -7 -7 -7 -7 -6 --------- Run | Yrd Mat Mat Mat Fac Was Fac Low Dat Pro Distress Signals 5 | . 1 2 1 1 . . . . . Communications Jammed . | . . . . . . . . . . Distress Signals . | . . . . . . . . . . Times Spotted 78 | . 17 12 14 10 3 5 3 . 14 Peak Tracking Total 8 | . 6 4 8 8 3 3 3 . 6 Tactical Retreats 11 | . 3 1 2 1 . 1 . . 3 Traps | -11 -10 -9 -8 -7 -7 -7 -7 -7 -6 ------- Run | Yrd Mat Mat Mat Fac Was Fac Low Dat Pro Traps Triggered 4 | . 3 . . 1 . . . . . Indirectly . | . . . . . . . . . . Trap Hack Attempts . | . . . . . . . . . . Triggered . | . . . . . . . . . . Disarmed . | . . . . . . . . . . Reprogrammed . | . . . . . . . . . . Reused . | . . . . . . . . . . Traps Extracted . | . . . . . . . . . . Installed . | . . . . . . . . . . Triggered . | . . . . . . . . . . Machines | -11 -10 -9 -8 -7 -7 -7 -7 -7 -6 ---------- Run | Yrd Mat Mat Mat Fac Was Fac Low Dat Pro Machines Disabled . | . . . . . . . . . . Max in Single Turn . | . . . . . . . . . . Garrison Access 1 | . . . . . . 1 . . . Machines Repaired . | . . . . . . . . . . Machines Dismantled . | . . . . . . . . . . Machines Sabotaged . | . . . . . . . . . . Overloaded Fab Kills . | . . . . . . . . . . Hacking | -11 -10 -9 -8 -7 -7 -7 -7 -7 -6 --------- Run | Yrd Mat Mat Mat Fac Was Fac Low Dat Pro Machines Accessed 13 | . 1 3 2 . . 3 . 4 . Terminals 6 | . 1 3 2 . . . . . . Fabricators . | . . . . . . . . . . Repair Stations . | . . . . . . . . . . Recycling Units . | . . . . . . . . . . Scanalyzers 1 | . . . . . . 1 . . . Garrison Access 2 | . . . . . . 2 . . . Total Hacks 54 | . 1 10 6 . . 9 . 28 . Successful 39 | . 1 5 3 . . 2 . 28 . Failed 15 | . . 5 3 . . 7 . . . Catastrophic 5 | . . 3 1 . . 1 . . . Database Lockouts . | . . . . . . . . . . Manual 10 | . . 5 4 . . . . 1 . Terminals 17 | . 1 10 6 . . . . . . Fabricators . | . . . . . . . . . . Repair Stations . | . . . . . . . . . . Recycling Units . | . . . . . . . . . . Scanalyzers 3 | . . . . . . 3 . . . Garrison Access 6 | . . . . . . 6 . . . Terminal Hacks 37 | . 1 5 3 . . . . 28 . Record 12 | . . 1 . . . . . 11 . Part Schematic 10 | . . . . . . . . 10 . Robot Schematic 4 | . . . . . . . . 4 . Prototype ID Bank 3 | . . . . . . . . 3 . Unreport Threat 1 | . . . 1 . . . . . . Locate Traps 1 | . . 1 . . . . . . . Hauler Manifests 1 | . . 1 . . . . . . . Zone Layout 5 | . 1 2 2 . . . . . . Fabricator Hacks . | . . . . . . . . . . Repair Station Hacks . | . . . . . . . . . . Recycling Unit Hacks . | . . . . . . . . . . Scanalyzer 1 | . . . . . . 1 . . . Insert Component 1 | . . . . . . 1 . . . Garrison Access Hacks 1 | . . . . . . 1 . . . Seal Access 1 | . . . . . . 1 . . . Unauthorized Hacks . | . . . . . . . . . . Terminals . | . . . . . . . . . . Fabricators . | . . . . . . . . . . Repair Stations . | . . . . . . . . . . Recycling Units . | . . . . . . . . . . Scanalyzers . | . . . . . . . . . . Garrison Access . | . . . . . . . . . . Data Cores Recovered . | . . . . . . . . . . Used . | . . . . . . . . . . Hacking Detections 7 | . . 3 2 . . 2 . . . Full Trace Events 1 | . . . 1 . . . . . . Feedback Events . | . . . . . . . . . . Feedback Blocked . | . . . . . . . . . . Robot Schematics Acquired 4 | . . . . . . . . 4 . Robots Built . | . . . . . . . . . . Authchips . | . . . . . . . . . . Time . | . . . . . . . . . . Total Robot Build Rating . | . . . . . . . . . . Part Schematics Acquired 10 | . . . . . . . . 10 . Parts Built . | . . . . . . . . . . Authchips . | . . . . . . . . . . Time . | . . . . . . . . . . Total Part Build Rating . | . . . . . . . . . . Parts Repaired . | . . . . . . . . . . Time . | . . . . . . . . . . Parts Recycled . | . . . . . . . . . . Recycled Matter . | . . . . . . . . . . Retrieved Matter . | . . . . . . . . . . Retrieved Components . | . . . . . . . . . . Parts Scanalyzed 1 | . . . . . . 1 . . . Part Schematics Acquired . | . . . . . . . . . . Parts Damaged 1 | . . . . . . 1 . . . Bothacking | -11 -10 -9 -8 -7 -7 -7 -7 -7 -6 ------------ Run | Yrd Mat Mat Mat Fac Was Fac Low Dat Pro Used RIF Installer . | . . . . . . . . . . Robots Hacked . | . . . . . . . . . . Non-combat . | . . . . . . . . . . Combat . | . . . . . . . . . . Robot Hacks Applied . | . . . . . . . . . . Relay Couplers Released . | . . . . . . . . . . Fabnet Peak Effective % . | . . . . . . . . . . Robots Rewired . | . . . . . . . . . . Allies Hacked . | . . . . . . . . . . Hacks Repelled . | . . . . . . . . . . Allies | -11 -10 -9 -8 -7 -7 -7 -7 -7 -6 -------- Run | Yrd Mat Mat Mat Fac Was Fac Low Dat Pro Total Allies 2 | . . . . . 1 . . . 1 Largest Group 1 | . . . . . 1 . . . 1 Highest-Rated Group 96 | . . . . . 31 . . . 96 Highest-Rated Ally 96 | . . . . . 31 . . . 96 Total Orders . | . . . . . . . . . . Ally Attacks 10 | . . . . . 4 . . . 6 Total Damage 508 | . . . . . 62 . . . 446 Kills 1 | . . . . . . . . . 1 Allies Corrupted . | . . . . . . . . . . Allies Melted . | . . . . . . . . . . Intel | -11 -10 -9 -8 -7 -7 -7 -7 -7 -6 ------- Run | Yrd Mat Mat Mat Fac Was Fac Low Dat Pro Active Infowar (turns) 2494 | . 135 406 573 815 31 250 73 32 179 ECM 2494 | . 135 406 573 815 31 250 73 32 179 Robot Analysis Total . | . . . . . . . . . . Derelict Logs Recovered 2 | . . . . . . . 1 . 1 Drone Launches . | . . . . . . . . . . Drone Recoveries . | . . . . . . . . . . Exploration | -11 -10 -9 -8 -7 -7 -7 -7 -7 -6 ------------- Run | Yrd Mat Mat Mat Fac Was Fac Low Dat Pro Turns Passed 2968 | 63 399 434 573 815 31 250 117 32 254 Spaces Moved 2733 | 36 208 297 326 501 109 543 138 95 480 Core 168 | 14 4 . . . . . 11 . 139 Treads . | . . . . . . . . . . Legs 252 | 22 204 26 . . . . . . . Wheels . | . . . . . . . . . . Hover . | . . . . . . . . . . Flight 2313 | . . 271 326 501 109 543 127 95 341 Fastest Speed 21 | 50 100 31 25 21 21 21 21 34 34 Average Speed 37 | 143 120 41 30 24 21 21 25 34 38 Slowest Speed 250 | 250 200 200 31 25 21 21 50 34 50 Overloaded Moves . | . . . . . . . . . . Propulsion Burnouts . | . . . . . . . . . . Robots Hopped 13 | . . 3 1 3 . 4 2 . . Potential Cave-ins . | . . . . . . . . . . Cave-ins Triggered . | . . . . . . . . . . Exploration Rate (%) 36 | 3 40 28 29 13 79 14 15 75 67 Regions Visited 9 Branch Regions 3 Pre-discovered Areas 2 | . . . . . . . . 1 1 Known Exits Taken . | . . . . . . . . . . Unknown Exits Taken 7 | 1 1 1 1 . . 1 1 1 . Scrap Searched . | . . . . . . . . . . Spaces Dug . | . . . . . . . . . . Terrain Destroyed . | . . . . . . . . . . Melee . | . . . . . . . . . . Projectile . | . . . . . . . . . . AOE . | . . . . . . . . . . Terrain Rammed . | . . . . . . . . . . Walls Destroyed . | . . . . . . . . . . Machines Disabled . | . . . . . . . . . . Actions | -11 -10 -9 -8 -7 -7 -7 -7 -7 -6 --------- Run | Yrd Mat Mat Mat Fac Was Fac Low Dat Pro Total 4512 | 43 290 580 797 1192 116 673 182 94 545 Wait 1614 | . 26 249 466 671 8 131 5 . 58 Move 2701 | 35 207 290 323 495 108 536 133 94 480 Hop 11 | . . 3 1 3 . 2 2 . . Pick Up 11 | 1 6 . 1 3 . . . . . Fast Attach 25 | 6 11 4 . 2 . 2 . . . Attach 21 | . 2 5 3 3 . . 7 . 1 Detach 6 | . . 2 1 . . . 1 . 2 Swap 20 | 1 3 6 2 7 . 1 . . . Drop 16 | . 1 6 . 8 . 1 . . . Fire 86 | . 33 15 . . . . 34 . 4 Melee . | . . . . . . . . . . Ram . | . . . . . . . . . . Kick 1 | . 1 . . . . . . . . Crush . | . . . . . . . . . . Escape Stasis . | . . . . . . . . . . Rewire . | . . . . . . . . . . Trap . | . . . . . . . . . . Miscellaneous . | . . . . . . . . . . Route ------- -11/Scrapyard -10/Materials -9/Materials (discovered 2 exits: *Mat / [*Min]) -8/Materials -7/Factory -7/Waste -7/Factory -7/Lower Caves -7/Data Miner -6/Proximity Caves History --------- Turn | Location | Event 15 | -11/Scrapyard | Discovered new exit (range 15) 64 | -11/Scrapyard | Entered Materials 314 | -10/Materials | Build established: Mutant 321 | -10/Materials | Lost 4 parts (1p1u2w) 457 | -10/Materials | Discovered new exit (range 6) 463 | -10/Materials | Entered another Materials area 463 | -9/Materials | Evolved 2 slots: Propulsion x2 618 | -9/Materials | Build established: Scavenger-Mutant 871 | -9/Materials | Discovered new exit (range 8) 892 | -9/Materials | Discovered new exit (range 8) 897 | -9/Materials | Entered another Materials area 897 | -8/Materials | Evolved 2 slots: Propulsion x2 1174 | -8/Materials | Build established: Scavenger-Sprinter 1467 | -8/Materials | Discovered new exit (range 11) 1470 | -8/Materials | Entered Factory 1470 | -7/Factory | Evolved 2 slots: Power x1, Utility x1 2285 | -7/Factory | Sucked down chute 2285 | -7/Factory | Entered Waste 2286 | -7/Waste | Met a frightened Derelict 2289 | -7/Waste | Spotted C-40 Crusher 2300 | -7/Waste | EMP discharged 2310 | -7/Waste | Spotted C-40 Crusher 2310 | -7/Waste | Spotted C-40 Crusher 2311 | -7/Waste | Spotted C-40 Crusher 2311 | -7/Waste | Spotted C-40 Crusher 2313 | -7/Waste | Discovered new exit (range 16) 2316 | -7/Waste | Entered Factory 2555 | -7/Factory | Build established: Sprinter 2564 | -7/Factory | Discovered new exit (range 9) 2566 | -7/Factory | Entered Lower Caves 2567 | -7/Lower Caves | Encountered a Warlord checkpoint 2677 | -7/Lower Caves | Learned Factory stockpile data 2679 | -7/Lower Caves | A Derelict revealed a hidden shortcut to meet someone special 2680 | -7/Lower Caves | Lost 12 parts (6n2u4w) 2683 | -7/Lower Caves | Entered Data Miner 2683 | -7/Data Miner | Discovered new exit (range 6) 2690 | -7/Data Miner | Met Data Miner 2702 | -7/Data Miner | Learned location of Section 7 (-3) 2702 | -7/Data Miner | Acquired the access code to Warlord's prototype stash 2708 | -7/Data Miner | Received God Mode back door access code from Data Miner 2715 | -7/Data Miner | Entered Proximity Caves 2737 | -6/Proximity Caves | Learned location of Zion (-6) 2896 | -6/Proximity Caves | Attracted the attention of an 0b10 checkpoint 2912 | -6/Proximity Caves | Spotted B-75 Beast 2921 | -6/Proximity Caves | Core integrity fell below 50% 2930 | -6/Proximity Caves | Build established: Mutant 2933 | -6/Proximity Caves | Lost 5 parts (1p1n2u1w) 2937 | -6/Proximity Caves | Escorted by Enhanced Grunt 2951 | -6/Proximity Caves | Core integrity fell below 20% 2969 | -6/Proximity Caves | Destroyed by S-27 Virus with Autogun Last Messages --------------- World map updated: -6/Zion. =3DRPV7HLTA8D:MBP9%OM EZL76H|E7 M System corrupted: Heat flow error (+115). Flight Unit destroyed. System corrupted: Matter fused (-9). JX>HSCKEK3LNVSUQQ4240OALI System corrupted: Matter fused (-7). 8%ZYBAWJQRIH4JZYCDDLOT9F5H VTOL Module destroyed. ECM Suite destroyed. IMK Y-54 Guardian: "INTERCEPTING UNREGISTERED DERELICT." Lgt. Assault Rifle destroyed. Cld. Ion Engine destroyed. Adv. Weight Redist. System destroyed. System corrupted: Heat flow error (+237). Enhanced Grunt: "Protecting LRC-V3." Chain reaction triggered in Lgt. Nuclear Core. Enhanced Grunt destroyed. Map ----- +----------------------------------------------------+ | | | | | | | | | | | | | | | | | | | | | | | ?????????????????????????????????????????????????? | | ?????????????????????????????????????????????????? | | ?????????????????????????????????????????????????? | | ?????????????????????????????????????????????????? | | ?????????????????????????????????????????????????? | | ?????????????????????????????????????????????????? | | ?????????????????????????????????????????????????? | | ?????????????????????####????????????????????????? | | ????????????????????##M ##???????????????????????? | | ???????????????????## #???????????????????????? | | ???????????????????# #???????????????????????? | | ???????????????????# #???????????????????????? | | ???????????????????## #???????????????????????? | | ???????????????????## #b ##??????????????????????? | | ??######???????##### # @#??????????????????????? | | ?## ##???#### ##?????????????????????? | | ## #???# s ##????????????????????? | | # #???## ####?????????????????? | | #????## ???????????????? | | ##????## #??????????????? | | ##????#s ### ???????????????? | | #??###s ###??# #??????????????? | | #### ####??# ???????????????? | | #???# ???????????????? | | ##???? ????????????????? | | # ## #????? ???????????????? | | ## ## ### ##?????? ?????????????????? | | ######## #??##??????? ?????????????????? | | ######## ##??????????????????????????????? | | ######???????????????????????????????? | | #????????????????????????????????????? | | ?### # ## #????????????????????????????????????? | | """ " "# #????????????????????????????????????? | | """ "# #????????????????????????????????????? | | """ T #????????????????????????????????????? | | """ #????????????????????????????????????? | | " ###??????????????????????????????????? | | " "# ##?????????????????????????????????? | | " # ##????????????????????????????????? | +----------------------------------------------------+ Best States ------------- Heat Dissipation 34 Energy Generation 19 Energy Capacity 305 Matter Stores 300 Matter Capacity 300 Sight Range 16 Terrain Scan Density 10 ECM Strength 1 Additional Mass Support 9 Armor Coverage 150 Evasion (%) 65 Armor Integrity Analysis 30 Item Schematics ----------------- Combat Drone Bay | -7/Data Miner | Free Lgt. Regenerative Plating | -7/Data Miner | Free Cld. Aerolev Unit | -7/Data Miner | Free Gravity Neutralizer | -7/Data Miner | Free Cld. Plasma Cannon | -7/Data Miner | Free Gyrokinetic Inverter | -7/Data Miner | Free Adv. Trap Extractor | -7/Data Miner | Free Imp. Arc Projector | -7/Data Miner | Free Imp. Component Analysis Suite | -7/Data Miner | Free Adv. Medium Treads | -7/Data Miner | Free Robot Schematics ------------------ I-36 Angel | -7/Data Miner | Free Y-54 Guardian | -7/Data Miner | Free S-27 Virus | -7/Data Miner | Free M-28 Smith | -7/Data Miner | Free Fabricated ------------ Nothing Repaired ---------- Nothing Alien Tech Used ----------------- None Achievements -------------- Librarian Shopping List The Oracle Challenges ------------ None Game ------ Seed DiametricRainbowTube Manual? 0 Play Time 00:44:32 Cumulative 19.1 hours Start 2025.08.23 @ 23:14:06 End 2025.08.24 @ 00:04:50 Sessions 1 Manual Loads 0 Difficulty Rogue Special Mode None Game No. 40 Rogue 40 Adventurer 0 Explorer 0 Win Type - Total 0 Types 0/0/0/0/0/0/0/0/0/0 Lore% 5 Gallery% 18 Achievement% 21 Wizard Run 0 Options --------- Layout 1 ASCII 1 Keyboard 0 Movement Numpad Keybinds 0 Fullscreen 1 Font 24/Cog Map View 50x35 Zoom Use 0% Tactical HUD 0 Map Filters NONE Filters NONE Steam 0 RUN: f2f7fd73-8d30-4432-a59d-0c074dbcc323